fUSD/lending_fUSD_20260523
["ID","MTS","AMOUNT","RATE_DAILY","PERIOD"]
[422834962,1779497441000,-151.0,0.00013151,2]
[422834976,1779497441000,-159.0,0.00013268,2]
[422834977,1779497441000,-157.0,0.00013268,2]
[422834979,1779497441000,-150.0,0.00013275,2]
[422834978,1779497441000,-160.0,0.00013268,2]
[422834982,1779497441000,-163.0,0.000134,2]
[422834981,1779497441000,-150.0,0.0001335,2]
[422834971,1779497441000,-38238.30343516,0.00013164,2]
[422834965,1779497441000,-151.0,0.00013151,2]
[422834957,1779497441000,-150.0,0.00013052,2]
[422834960,1779497441000,-151.0,0.00013151,2]
[422834985,1779497441000,-1588.0,0.000134,2]
[422834941,1779497441000,-9999.99,0.00012893,2]
[422834940,1779497441000,-17194.45,0.00012893,2]
[422834942,1779497441000,-24999.99,0.00012893,2]
[422834943,1779497441000,-16017.76,0.00012893,2]
[422834946,1779497441000,-1000.0,0.000129,2]
[422834948,1779497441000,-150.0,0.00012903,2]
[422834949,1779497441000,-150.0,0.00012977,2]
[422834963,1779497441000,-151.0,0.00013151,2]
[422834945,1779497441000,-9999.99,0.00012893,2]
[422834944,1779497441000,-4114.03,0.00012893,2]
[422834952,1779497441000,-183.39747785,0.00012987,2]
[422834956,1779497441000,-163.63,0.00013032,2]
[422834951,1779497441000,-470.34025697,0.0001298,2]
[422834954,1779497441000,-39690.81006958,0.00012995,2]
[422834959,1779497441000,-150.0,0.00013126,2]
[422834958,1779497441000,-361.98,0.00013087,2]
[422834961,1779497441000,-151.0,0.00013151,2]
[422834947,1779497441000,-315.0,0.000129,2]
[422834950,1779497441000,-471.36,0.00012977,2]
[422834984,1779497441000,-2315.0,0.000134,2]
[422834983,1779497441000,-707.0,0.000134,2]
[422835011,1779497441000,-500.0,0.00013698,2]
[422835012,1779497441000,-500.0,0.00013698,2]
[422835013,1779497441000,-500.0,0.00013698,2]
[422835015,1779497441000,-500.0,0.00013698,2]
[422835016,1779497441000,-534.75180877,0.00013698,2]
[422835021,1779497441000,-500.0,0.00013698,2]
[422835018,1779497441000,-500.0,0.00013698,2]
[422835019,1779497441000,-500.0,0.00013698,2]
[422835008,1779497441000,-500.0,0.00013698,2]
[422835014,1779497441000,-500.0,0.00013698,2]
[422835022,1779497441000,-500.0,0.00013698,2]
[422835023,1779497441000,-500.0,0.00013698,2]
[422835025,1779497441000,-500.0,0.00013698,2]
[422835024,1779497441000,-500.0,0.00013698,2]
[422835026,1779497441000,-500.0,0.00013698,2]
[422835028,1779497441000,-500.0,0.00013698,2]
[422835027,1779497441000,-500.0,0.00013698,2]
[422834980,1779497441000,-1152.0,0.00013292,2]
[422835017,1779497441000,-500.0,0.00013698,2]
[422835010,1779497441000,-500.0,0.00013698,2]
[422835020,1779497441000,-500.0,0.00013698,2]
[422835009,1779497441000,-500.0,0.00013698,2]
[422835007,1779497441000,-500.0,0.00013698,2]
[422834986,1779497441000,-1588.0,0.000134,2]
[422834993,1779497441000,-186.36680656,0.00013598,2]
[422834991,1779497441000,-500.0,0.0001358,6]
[422834988,1779497441000,-229.25980788,0.00013425,2]
[422834997,1779497441000,-625.0,0.0001362,2]
[422834989,1779497441000,-1228.0,0.00013574,2]
[422834995,1779497441000,-1355.0,0.0001362,2]
[422834996,1779497441000,-3546.0,0.0001362,2]
[422834994,1779497441000,-10000.0,0.00013598,2]
[422834987,1779497441000,-18556.16699413,0.00013412,2]
[422835006,1779497441000,-641.21721473,0.00013698,2]
[422835003,1779497441000,-39690.81006958,0.0001363,2]
[422834999,1779497441000,-1271.0,0.0001362,2]
[422835001,1779497441000,-6059.0,0.0001362,2]
[422834998,1779497441000,-927.0,0.0001362,2]
[422835002,1779497441000,-3634.0,0.0001362,2]
[422835000,1779497441000,-1224.0,0.0001362,2]
[422835005,1779497441000,-500.0,0.00013698,2]
[422835004,1779497441000,-215.27762834,0.0001367,2]
[422835056,1779497442000,-500.0,0.00013698,2]
[422835055,1779497442000,-500.0,0.00013698,2]
[422835057,1779497442000,-500.0,0.00013698,2]
[422835050,1779497442000,-500.0,0.00013698,2]
[422835053,1779497442000,-500.0,0.00013698,2]
[422835052,1779497442000,-500.0,0.00013698,2]
[422835060,1779497442000,-500.0,0.00013698,2]
[422835054,1779497442000,-500.0,0.00013698,2]
[422835058,1779497442000,-500.0,0.00013698,2]
[422835065,1779497442000,-500.0,0.00013698,2]
[422835061,1779497442000,-500.0,0.00013698,2]
[422835059,1779497442000,-500.0,0.00013698,2]
[422835066,1779497442000,-500.0,0.00013698,2]
[422835069,1779497442000,-506.67968673,0.00013698,2]
[422835070,1779497442000,-500.0,0.00013698,2]
[422835076,1779497442000,-500.0,0.00013698,2]
[422835068,1779497442000,-500.0,0.00013698,2]
[422835074,1779497442000,-500.0,0.00013698,2]
[422835063,1779497442000,-500.0,0.00013698,2]
[422835051,1779497442000,-500.0,0.00013698,2]
[422835071,1779497442000,-500.0,0.00013698,2]
[422835049,1779497442000,-500.0,0.00013698,2]
[422835031,1779497442000,-500.0,0.00013698,2]
[422835032,1779497442000,-500.0,0.00013698,2]
[422835030,1779497442000,-500.0,0.00013698,2]
[422835029,1779497442000,-500.0,0.00013698,2]
[422835033,1779497442000,-500.0,0.00013698,2]
[422835040,1779497442000,-500.0,0.00013698,2]
[422835036,1779497442000,-500.0,0.00013698,2]
[422835038,1779497442000,-638.56858511,0.00013698,2]
[422835037,1779497442000,-500.0,0.00013698,2]
[422835034,1779497442000,-500.0,0.00013698,2]
[422835035,1779497442000,-500.0,0.00013698,2]
[422835039,1779497442000,-500.0,0.00013698,2]
[422835042,1779497442000,-500.0,0.00013698,2]
[422835043,1779497442000,-460.12540778,0.00013698,2]
[422835041,1779497442000,-500.0,0.00013698,2]
[422835044,1779497442000,-500.0,0.00013698,2]
[422835045,1779497442000,-307.08,0.00013698,2]
[422835046,1779497442000,-500.0,0.00013698,2]
[422835047,1779497442000,-503.47273161,0.00013698,2]
[422835048,1779497442000,-500.0,0.00013698,2]
[422835075,1779497442000,-500.0,0.00013698,2]
[422835086,1779497442000,-500.0,0.00013698,2]
[422835077,1779497442000,-500.0,0.00013698,2]
[422835097,1779497442000,-500.0,0.00013698,2]
[422835104,1779497442000,-962.34,0.00013698,2]
[422835103,1779497442000,-962.34,0.00013698,2]
[422835106,1779497442000,-962.34,0.00013698,2]
[422835102,1779497442000,-962.34,0.00013698,2]
[422835108,1779497442000,-962.34,0.00013698,2]
[422835118,1779497442000,-500.0,0.00013698,2]
[422835107,1779497442000,-962.34,0.00013698,2]
[422835110,1779497442000,-500.0,0.00013698,2]
[422835111,1779497442000,-500.0,0.00013698,2]
[422835113,1779497442000,-500.0,0.00013698,2]
[422835109,1779497442000,-500.0,0.00013698,2]
[422835114,1779497442000,-500.0,0.00013698,2]
[422835117,1779497442000,-500.0,0.00013698,2]
[422835115,1779497442000,-500.0,0.00013698,2]
[422835116,1779497442000,-500.0,0.00013698,2]
[422835119,1779497442000,-500.0,0.00013698,2]
[422835121,1779497442000,-500.0,0.00013698,2]
[422835072,1779497442000,-500.0,0.00013698,2]
[422835100,1779497442000,-500.0,0.00013698,2]
[422835101,1779497442000,-962.34,0.00013698,2]
[422835112,1779497442000,-500.0,0.00013698,2]
[422835096,1779497442000,-500.0,0.00013698,2]
[422835099,1779497442000,-500.0,0.00013698,2]
[422835080,1779497442000,-500.0,0.00013698,2]
[422835079,1779497442000,-500.0,0.00013698,2]
[422835083,1779497442000,-500.0,0.00013698,2]
[422835078,1779497442000,-500.0,0.00013698,2]
[422835082,1779497442000,-500.0,0.00013698,2]
[422835081,1779497442000,-500.0,0.00013698,2]
[422835085,1779497442000,-500.0,0.00013698,2]
[422835087,1779497442000,-500.0,0.00013698,2]
[422835084,1779497442000,-500.0,0.00013698,2]
[422835090,1779497442000,-500.0,0.00013698,2]
[422835088,1779497442000,-500.0,0.00013698,2]
[422835095,1779497442000,-500.0,0.00013698,2]
[422835091,1779497442000,-500.0,0.00013698,2]
[422835093,1779497442000,-330.57854862,0.00013698,2]
[422835092,1779497442000,-549.43396585,0.00013698,2]
[422835089,1779497442000,-500.0,0.00013698,2]
[422835120,1779497442000,-500.0,0.00013698,2]
[422835094,1779497442000,-500.0,0.00013698,2]
[422835098,1779497442000,-500.0,0.00013698,2]
[422835151,1779497443000,-500.0,0.00013698,2]
[422835160,1779497443000,-500.0,0.00013698,2]
[422835159,1779497443000,-500.0,0.00013698,2]
[422835162,1779497443000,-500.0,0.00013698,2]
[422835164,1779497443000,-500.0,0.00013698,2]
[422835163,1779497443000,-500.0,0.00013698,2]
[422835165,1779497443000,-500.0,0.00013698,2]
[422835167,1779497443000,-500.0,0.00013698,2]
[422835166,1779497443000,-500.0,0.00013698,2]
[422835174,1779497443000,-513.50677347,0.00013698,2]
[422835168,1779497443000,-500.0,0.00013698,2]
[422835173,1779497443000,-500.0,0.00013698,2]
[422835170,1779497443000,-500.0,0.00013698,2]
[422835149,1779497443000,-500.0,0.00013698,2]
[422835169,1779497443000,-500.0,0.00013698,2]
[422835161,1779497443000,-500.0,0.00013698,2]
[422835147,1779497443000,-500.0,0.00013698,2]
[422835134,1779497443000,-500.0,0.00013698,2]
[422835157,1779497443000,-500.0,0.00013698,2]
[422835172,1779497443000,-500.0,0.00013698,2]
[422835124,1779497443000,-500.0,0.00013698,2]
[422835126,1779497443000,-500.0,0.00013698,2]
[422835125,1779497443000,-500.0,0.00013698,2]
[422835127,1779497443000,-500.0,0.00013698,2]
[422835129,1779497443000,-500.0,0.00013698,2]
[422835128,1779497443000,-500.0,0.00013698,2]
[422835148,1779497443000,-500.0,0.00013698,2]
[422835131,1779497443000,-500.0,0.00013698,2]
[422835145,1779497443000,-500.0,0.00013698,2]
[422835138,1779497443000,-500.0,0.00013698,2]
[422835146,1779497443000,-500.0,0.00013698,2]
[422835144,1779497443000,-500.0,0.00013698,2]
[422835140,1779497443000,-500.0,0.00013698,2]
[422835142,1779497443000,-500.0,0.00013698,2]
[422835154,1779497443000,-500.0,0.00013698,2]
[422835135,1779497443000,-623.51818685,0.00013698,2]
[422835176,1779497443000,-500.0,0.00013698,2]
[422835171,1779497443000,-500.0,0.00013698,2]
[422835175,1779497443000,-500.0,0.00013698,2]
[422835198,1779497443000,-573.0866294,0.00013698,2]
[422835200,1779497443000,-369.00573565,0.00013698,2]
[422835199,1779497443000,-500.0,0.00013698,2]
[422835201,1779497443000,-200.0,0.00013699,2]
[422835203,1779497443000,-2500.0,0.00013699,2]
[422835209,1779497443000,-9999.99,0.00013699,2]
[422835207,1779497443000,-167.42,0.00013699,2]
[422835197,1779497443000,-500.0,0.00013698,2]
[422835204,1779497443000,-166.66,0.00013699,2]
[422835205,1779497443000,-274.499836,0.00013699,2]
[422835206,1779497443000,-999.99,0.00013699,2]
[422835211,1779497443000,-642.46,0.000137,2]
[422835210,1779497443000,-1970.35,0.000137,2]
[422835213,1779497443000,-190.65576909,0.000137,2]
[422835212,1779497443000,-150.0,0.000137,2]
[422835177,1779497443000,-500.0,0.00013698,2]
[422835202,1779497443000,-151.0,0.00013699,2]
[422835196,1779497443000,-500.0,0.00013698,2]
[422835208,1779497443000,-150.99,0.00013699,2]
[422835193,1779497443000,-500.0,0.00013698,2]
[422835178,1779497443000,-500.0,0.00013698,2]
[422835195,1779497443000,-500.0,0.00013698,2]
[422835180,1779497443000,-500.0,0.00013698,2]
[422835182,1779497443000,-500.0,0.00013698,2]
[422835179,1779497443000,-165.84382573,0.00013698,2]
[422835183,1779497443000,-500.0,0.00013698,2]
[422835186,1779497443000,-500.0,0.00013698,2]
[422835189,1779497443000,-500.0,0.00013698,2]
[422835181,1779497443000,-500.0,0.00013698,2]
[422835185,1779497443000,-500.0,0.00013698,2]
[422835184,1779497443000,-500.0,0.00013698,2]
[422835187,1779497443000,-500.0,0.00013698,2]
[422835191,1779497443000,-500.0,0.00013698,2]
[422835190,1779497443000,-500.0,0.00013698,2]
[422835188,1779497443000,-500.0,0.00013698,2]
[422835194,1779497443000,-502.73843506,0.00013698,2]
[422835192,1779497443000,-500.0,0.00013698,2]
[422835247,1779497444000,-250.0,0.00014,2]
[422835252,1779497444000,-500.0,0.00014039,2]
[422835253,1779497444000,-10528.24645258,0.0001404,2]
[422835251,1779497444000,-500.0,0.00014039,2]
[422835249,1779497444000,-399.54,0.00014,2]
[422835250,1779497444000,-11253.28523923,0.00014039,2]
[422835246,1779497444000,-3114.4,0.00014,2]
[422835255,1779497444000,-1588.0,0.0001404,2]
[422835248,1779497444000,-200.0,0.00014,2]
[422835254,1779497444000,-1588.0,0.0001404,2]
[422835262,1779497444000,-2313.0,0.0001404,2]
[422835257,1779497444000,-163.0,0.0001404,2]
[422835258,1779497444000,-163.0,0.0001404,2]
[422835261,1779497444000,-2315.0,0.0001404,2]
[422835259,1779497444000,-2315.0,0.0001404,2]
[422835260,1779497444000,-2315.0,0.0001404,2]
[422835263,1779497444000,-1586.0,0.0001404,2]
[422835265,1779497444000,-166.66,0.0001411,2]
[422835267,1779497444000,-500.0,0.00014199,7]
[422835266,1779497444000,-18556.16699413,0.00014156,2]
[422835245,1779497444000,-3114.4,0.00014,2]
[422835256,1779497444000,-163.0,0.0001404,2]
[422835244,1779497444000,-423.14155518,0.0001399,2]
[422835220,1779497444000,-163.0,0.0001372,2]
[422835239,1779497444000,-500.0,0.00013926,2]
[422835269,1779497444000,-166.66,0.00014247,2]
[422835215,1779497444000,-2315.0,0.0001372,2]
[422835216,1779497444000,-2315.0,0.0001372,2]
[422835218,1779497444000,-2315.0,0.0001372,2]
[422835217,1779497444000,-163.0,0.0001372,2]
[422835214,1779497444000,-1588.0,0.0001372,2]
[422835219,1779497444000,-1583.0,0.0001372,2]
[422835221,1779497444000,-2314.0,0.0001372,2]
[422835224,1779497444000,-691.722,0.0001372,2]
[422835222,1779497444000,-2335.0,0.0001372,2]
[422835238,1779497444000,-2000.0,0.00013915,7]
[422835223,1779497444000,-163.0,0.0001372,2]
[422835225,1779497444000,-38238.30343516,0.00013743,2]
[422835229,1779497444000,-1141.1359379,0.00013815,2]
[422835233,1779497444000,-166.66,0.00013836,2]
[422835243,1779497444000,-166.66,0.00013973,2]
[422835241,1779497444000,-2000.0,0.00013929,2]
[422835240,1779497444000,-500.0,0.00013926,2]
[422835231,1779497444000,-909.382073,0.00013815,2]
[422835242,1779497444000,-684.49233943,0.00013939,2]
[422835236,1779497444000,-4500.0,0.000139,5]
[422835234,1779497444000,-463.59176848,0.00013863,2]
[422835227,1779497444000,-403.12,0.000138,2]
[422835268,1779497444000,-37154.18738249,0.000142,2]
[422835264,1779497444000,-1098.07046975,0.00014049,5]
[422835276,1779497444000,-500.0,0.00014249,2]
[422835301,1779497444000,-500.0,0.00014399,2]
[422835299,1779497444000,-500.0,0.00014399,2]
[422835297,1779497444000,-166.66,0.00014384,2]
[422835296,1779497444000,-1588.0,0.0001436,2]
[422835300,1779497444000,-500.0,0.00014399,2]
[422835298,1779497444000,-500.0,0.00014399,2]
[422835304,1779497444000,-500.0,0.00014399,2]
[422835315,1779497444000,-6453.0,0.00014488,2]
[422835305,1779497444000,-500.0,0.00014399,2]
[422835308,1779497444000,-500.0,0.00014399,2]
[422835295,1779497444000,-163.0,0.0001436,2]
[422835312,1779497444000,-500.0,0.00014413,2]
[422835306,1779497444000,-962.34,0.00014399,2]
[422835309,1779497444000,-500.0,0.00014399,2]
[422835311,1779497444000,-500.0,0.00014413,2]
[422835313,1779497444000,-359.27,0.00014418,2]
[422835310,1779497444000,-5678.6523204,0.000144,4]
[422835317,1779497444000,-558.0,0.0001452,2]
[422835316,1779497444000,-5600.0,0.000145,5]
[422835318,1779497444000,-2000.0,0.00014523,7]
[422835319,1779497444000,-1100.0,0.000146,5]
[422835270,1779497444000,-500.0,0.00014249,8]
[422835307,1779497444000,-594.69517291,0.00014399,2]
[422835302,1779497444000,-500.0,0.00014399,2]
[422835314,1779497444000,-684.49233942,0.0001442,2]
[422835303,1779497444000,-500.0,0.00014399,2]
[422835294,1779497444000,-2315.0,0.0001436,2]
[422835278,1779497444000,-500.0,0.00014249,2]
[422835280,1779497444000,-463.385536,0.00014249,2]
[422835277,1779497444000,-500.0,0.00014249,2]
[422835279,1779497444000,-962.34,0.00014249,2]
[422835271,1779497444000,-500.0,0.00014249,2]
[422835275,1779497444000,-500.0,0.00014249,2]
[422835273,1779497444000,-500.0,0.00014249,2]
[422835274,1779497444000,-500.0,0.00014249,2]
[422835281,1779497444000,-500.0,0.00014249,2]
[422835283,1779497444000,-500.0,0.00014249,2]
[422835272,1779497444000,-500.0,0.00014249,2]
[422835286,1779497444000,-157.0,0.00014268,2]
[422835284,1779497444000,-39690.81006958,0.00014265,2]
[422835291,1779497444000,-158.25,0.00014327,2]
[422835290,1779497444000,-288.40013892,0.00014326,9]
[422835287,1779497444000,-160.0,0.00014268,2]
[422835288,1779497444000,-361.98,0.00014276,2]
[422835282,1779497444000,-500.0,0.00014249,2]
[422835289,1779497444000,-38238.30343516,0.00014321,2]
[422835293,1779497444000,-2315.0,0.0001436,2]
[422835285,1779497444000,-159.0,0.00014268,2]
[422835292,1779497444000,-1588.0,0.0001436,2]
[422835349,1779497445000,-198.0,0.00014818,2]
[422835357,1779497445000,-4528.89031255,0.000149,3]
[422835353,1779497445000,-500.0,0.00014864,2]
[422835351,1779497445000,-2433.37779274,0.00014849,2]
[422835358,1779497445000,-393.9254056,0.000149,2]
[422835352,1779497445000,-500.0,0.00014864,2]
[422835355,1779497445000,-290.91,0.00014899,2]
[422835356,1779497445000,-500.0,0.00014899,2]
[422835350,1779497445000,-150.0,0.00014826,2]
[422835354,1779497445000,-15000.0,0.00014865,2]
[422835360,1779497445000,-1100.0,0.000149,5]
[422835375,1779497445000,-500.0,0.00014999,2]
[422835369,1779497445000,-10000.0,0.00014989,2]
[422835370,1779497445000,-922.3354379,0.0001499,2]
[422835359,1779497445000,-25000.0,0.000149,3]
[422835361,1779497445000,-39690.81006958,0.000149,2]
[422835364,1779497445000,-684.49233942,0.000149,2]
[422835362,1779497445000,-18556.16699413,0.000149,2]
[422835367,1779497445000,-10000.0,0.0001494,2]
[422835366,1779497445000,-186.36680656,0.000149,2]
[422835365,1779497445000,-38238.30343516,0.000149,2]
[422835371,1779497445000,-3332.9134015,0.00014999,2]
[422835377,1779497445000,-534.78396949,0.00014999,2]
[422835348,1779497445000,-150.0,0.00014818,2]
[422835368,1779497445000,-922.3354379,0.00014979,2]
[422835345,1779497445000,-150.0,0.00014818,2]
[422835320,1779497445000,-1613.0,0.00014621,2]
[422835344,1779497445000,-150.0,0.00014818,2]
[422835321,1779497445000,-150.0,0.0001466,2]
[422835322,1779497445000,-150.0,0.0001466,2]
[422835323,1779497445000,-1588.0,0.0001468,2]
[422835372,1779497445000,-1098.07046975,0.00014999,5]
[422835325,1779497445000,-163.0,0.0001468,2]
[422835324,1779497445000,-1588.0,0.0001468,2]
[422835327,1779497445000,-2315.0,0.0001468,2]
[422835326,1779497445000,-320.0,0.0001468,2]
[422835328,1779497445000,-2315.0,0.0001468,2]
[422835330,1779497445000,-2315.0,0.0001468,2]
[422835332,1779497445000,-10000.0,0.00014694,2]
[422835334,1779497445000,-2296.84327871,0.000147,2]
[422835329,1779497445000,-663.0,0.0001468,2]
[422835333,1779497445000,-1100.0,0.000147,5]
[422835331,1779497445000,-164.0,0.0001468,2]
[422835335,1779497445000,-268.0,0.00014721,2]
[422835337,1779497445000,-202.9105676,0.00014728,2]
[422835347,1779497445000,-150.0,0.00014818,2]
[422835336,1779497445000,-254.6218445,0.00014728,2]
[422835338,1779497445000,-6111.0,0.00014729,2]
[422835339,1779497445000,-1206.21215852,0.000148,2]
[422835340,1779497445000,-1100.0,0.000148,5]
[422835343,1779497445000,-150.0,0.00014818,2]
[422835342,1779497445000,-150.0,0.00014818,2]
[422835346,1779497445000,-150.0,0.00014818,2]
[422835341,1779497445000,-9253.86518306,0.00014811,2]
[422835374,1779497445000,-500.0,0.00014999,2]
[422835387,1779497445000,-500.0,0.00014999,2]
[422835373,1779497445000,-500.0,0.00014999,2]
[422835419,1779497445000,-500.0,0.00014999,2]
[422835422,1779497445000,-367.02,0.00014999,2]
[422835424,1779497445000,-962.34,0.00014999,2]
[422835409,1779497445000,-500.0,0.00014999,2]
[422835411,1779497445000,-500.0,0.00014999,2]
[422835376,1779497445000,-500.0,0.00014999,2]
[422835416,1779497445000,-500.0,0.00014999,2]
[422835410,1779497445000,-500.0,0.00014999,2]
[422835414,1779497445000,-500.0,0.00014999,2]
[422835413,1779497445000,-500.0,0.00014999,2]
[422835426,1779497445000,-962.34,0.00014999,2]
[422835408,1779497445000,-500.0,0.00014999,2]
[422835434,1779497445000,-962.34,0.00014999,2]
[422835436,1779497445000,-962.34,0.00014999,2]
[422835425,1779497445000,-962.34,0.00014999,2]
[422835427,1779497445000,-962.34,0.00014999,2]
[422835431,1779497445000,-962.34,0.00014999,2]
[422835433,1779497445000,-962.34,0.00014999,2]
[422835429,1779497445000,-962.34,0.00014999,2]
[422835428,1779497445000,-962.34,0.00014999,2]
[422835432,1779497445000,-962.34,0.00014999,2]
[422835430,1779497445000,-962.34,0.00014999,2]
[422835438,1779497445000,-962.56990957,0.00014999,2]
[422835437,1779497445000,-962.34,0.00014999,2]
[422835435,1779497445000,-962.34,0.00014999,2]
[422835404,1779497445000,-500.0,0.00014999,2]
[422835412,1779497445000,-500.0,0.00014999,2]
[422835401,1779497445000,-320.34,0.00014999,2]
[422835380,1779497445000,-500.0,0.00014999,2]
[422835379,1779497445000,-500.0,0.00014999,2]
[422835378,1779497445000,-500.0,0.00014999,2]
[422835381,1779497445000,-531.58244512,0.00014999,2]
[422835399,1779497445000,-500.0,0.00014999,2]
[422835393,1779497445000,-500.0,0.00014999,2]
[422835383,1779497445000,-500.0,0.00014999,2]
[422835384,1779497445000,-500.0,0.00014999,2]
[422835386,1779497445000,-500.0,0.00014999,2]
[422835385,1779497445000,-500.0,0.00014999,2]
[422835394,1779497445000,-500.0,0.00014999,2]
[422835390,1779497445000,-500.0,0.00014999,2]
[422835382,1779497445000,-500.0,0.00014999,2]
[422835388,1779497445000,-500.0,0.00014999,2]
[422835389,1779497445000,-500.0,0.00014999,2]
[422835400,1779497445000,-500.0,0.00014999,2]
[422835396,1779497445000,-500.0,0.00014999,2]
[422835405,1779497445000,-500.0,0.00014999,2]
[422835402,1779497445000,-500.0,0.00014999,2]
[422835406,1779497445000,-500.0,0.00014999,2]
[422835403,1779497445000,-500.0,0.00014999,2]
[422835397,1779497445000,-500.0,0.00014999,2]
[422835395,1779497445000,-508.24372383,0.00014999,2]
[422835391,1779497445000,-500.0,0.00014999,2]
[422835392,1779497445000,-500.0,0.00014999,2]
[422835398,1779497445000,-500.0,0.00014999,2]
[422835443,1779497446000,-500.0,0.00014999,2]
[422835457,1779497446000,-500.0,0.00014999,2]
[422835459,1779497446000,-500.0,0.00014999,2]
[422835450,1779497446000,-572.52063942,0.00014999,2]
[422835456,1779497446000,-500.0,0.00014999,2]
[422835449,1779497446000,-500.0,0.00014999,2]
[422835441,1779497446000,-500.0,0.00014999,2]
[422835440,1779497446000,-500.0,0.00014999,2]
[422835445,1779497446000,-500.0,0.00014999,2]
[422835444,1779497446000,-500.0,0.00014999,2]
[422835446,1779497446000,-500.0,0.00014999,2]
[422835442,1779497446000,-529.71098995,0.00014999,2]
[422835458,1779497446000,-500.0,0.00014999,2]
[422835447,1779497446000,-500.0,0.00014999,2]
[422835448,1779497446000,-500.0,0.00014999,2]
[422835439,1779497446000,-500.0,0.00014999,2]
[422835451,1779497446000,-500.0,0.00014999,2]
[422835470,1779497446000,-1096.39685345,0.00015,2]
[422835453,1779497446000,-500.0,0.00014999,2]
[422835472,1779497446000,-551.280587,0.00010956,2]
[422835473,1779497446000,-1313.91524577,0.000116,2]
[422835471,1779497446000,-376.67863705,0.00015,2]
[422835468,1779497446000,-190.31550175,0.00011634,2]
[422835469,1779497446000,-3319.32225792,0.00015,2]
[422835465,1779497446000,-428.10778413,0.00015,2]
[422835467,1779497446000,-1900.69715789,0.00015,2]
[422835452,1779497446000,-500.0,0.00014999,2]
[422835464,1779497446000,-1483094.31619036,0.00015,2]
[422835461,1779497446000,-500.0,0.00014999,2]
[422835460,1779497446000,-500.0,0.00014999,2]
[422835463,1779497446000,-279.71238357,0.00014999,2]
[422835462,1779497446000,-500.0,0.00014999,2]
[422835454,1779497446000,-500.0,0.00014999,2]
[422835455,1779497446000,-500.0,0.00014999,2]
[422835466,1779497446000,-872437.43081501,0.00015,2]
[422835476,1779497447000,-8836.52581401,0.000116,2]
[422835475,1779497447000,-931.0,0.0001062,2]
[422835477,1779497447000,-1710.62208503,0.00013598,2]
[422835478,1779497447000,-1256.66591367,0.00013598,2]
[422835480,1779497447000,-670.23,0.00013598,2]
[422835479,1779497447000,-6948.02443596,0.00013598,2]
[422835482,1779497543000,83020.3028,8.597e-05,2]
[422835492,1779498541000,1000.0,0.00028077,120]
[422835525,1779498614000,211.2,0.00028082,120]
[422835549,1779498631000,-160.0,9.355e-05,2]
[422835551,1779498631000,-215.27762834,9.367e-05,2]
[422835553,1779498631000,-300.0,9.577e-05,2]
[422835555,1779498631000,-743.03127982,9.577e-05,2]
[422835542,1779498631000,-255.07949517,9.172e-05,2]
[422835547,1779498631000,-208.7374384,9.355e-05,2]